[Event "*** SCC Grand Prix: Titled Tuesday Blitz"]
[Site "Chess.com"]
[Date "2020.09.29"]
[Round "7"]
[White "kreonx"]
[Black "ErikRonka"]
[Result "0-1"]
[WhiteElo "2352"]
[BlackElo "2476"]
[TimeControl "180+1"]
[EndTime "11:16:10 PDT"]
[Termination "ErikRonka won by resignation"]

1. e4 {[%clk 0:03:00.9]} 1... g6 {[%clk 0:02:58.9]} 2. d4 {[%clk 0:02:57.5]}
2... Bg7 {[%clk 0:02:59.4]} 3. h3 {[%clk 0:02:52.6]} 3... d6 {[%clk 0:02:52.7]}
4. Ne2 {[%clk 0:02:42.3]} 4... a6 {[%clk 0:02:51.7]} 5. a4 {[%clk 0:02:39.9]}
5... b6 {[%clk 0:02:51.7]} 6. g4 {[%clk 0:02:37.3]} 6... Bb7 {[%clk 0:02:51.7]}
7. Bg2 {[%clk 0:02:37.6]} 7... Nd7 {[%clk 0:02:51]} 8. O-O {[%clk 0:02:36.4]}
8... c5 {[%clk 0:02:33]} 9. Be3 {[%clk 0:02:33.1]} 9... Qc7 {[%clk 0:02:32.5]}
10. f4 {[%clk 0:02:30.7]} 10... Ngf6 {[%clk 0:02:28.4]} 11. Nbc3 {[%clk
0:02:28.5]} 11... cxd4 {[%clk 0:02:25.8]} 12. Bxd4 {[%clk 0:02:25.5]} 12... Kd8
{[%clk 0:02:19.2]} 13. e5 {[%clk 0:02:22.6]} 13... Ne8 {[%clk 0:01:46.2]} 14.
Bxb7 {[%clk 0:02:12.3]} 14... Qxb7 {[%clk 0:01:43.3]} 15. exd6 {[%clk
0:02:10.6]} 15... exd6 {[%clk 0:01:42]} 16. Bxg7 {[%clk 0:02:08.1]} 16... Nxg7
{[%clk 0:01:42.9]} 17. Qxd6 {[%clk 0:01:51.5]} 17... Qc7 {[%clk 0:01:40.4]} 18.
Qd4 {[%clk 0:01:37.7]} 18... Qc5 {[%clk 0:01:39.4]} 19. Ne4 {[%clk 0:01:26.1]}
19... Qxd4+ {[%clk 0:01:38.7]} 20. Nxd4 {[%clk 0:01:27]} 20... Kc7 {[%clk
0:01:37.5]} 21. Rad1 {[%clk 0:01:23.1]} 21... h5 {[%clk 0:01:32.6]} 22. Nf3
{[%clk 0:01:15.1]} 22... hxg4 {[%clk 0:01:27.6]} 23. hxg4 {[%clk 0:01:14.4]}
23... Ne6 {[%clk 0:01:24.9]} 24. Nfg5 {[%clk 0:00:56]} 24... Nxg5 {[%clk
0:01:17.3]} 25. fxg5 {[%clk 0:00:51.5]} 25... Rh4 {[%clk 0:01:16.9]} 26. Rxd7+
{[%clk 0:00:40]} 26... Kxd7 {[%clk 0:01:15]} 27. Rxf7+ {[%clk 0:00:40.6]} 27...
Ke8 {[%clk 0:00:57.4]} 28. Nd6+ {[%clk 0:00:34.9]} 28... Kd8 {[%clk 0:00:53.7]}
29. Rf8+ {[%clk 0:00:33.6]} 29... Kd7 {[%clk 0:00:53.3]} 30. Rxa8 {[%clk
0:00:33.1]} 30... Rxg4+ {[%clk 0:00:52.9]} 31. Kf2 {[%clk 0:00:30.8]} 31... Kxd6
{[%clk 0:00:53.8]} 32. Rxa6 {[%clk 0:00:30.4]} 32... Kc7 {[%clk 0:00:48.8]} 33.
a5 {[%clk 0:00:30]} 33... Rxg5 {[%clk 0:00:41.6]} 34. Rxb6 {[%clk 0:00:15.8]}
34... Rxa5 {[%clk 0:00:40.8]} 35. Rb3 {[%clk 0:00:10.2]} 35... Rd5 {[%clk
0:00:31.6]} 36. Ke3 {[%clk 0:00:09.2]} 36... Rh5 {[%clk 0:00:30.9]} 37. Rb4
{[%clk 0:00:07.1]} 37... g5 {[%clk 0:00:28.4]} 38. Rg4 {[%clk 0:00:05.9]} 38...
Rh2 {[%clk 0:00:25.2]} 39. Kd3 {[%clk 0:00:05.4]} 39... Rh3+ {[%clk 0:00:20.5]}
40. Kc4 {[%clk 0:00:05.3]} 40... Rh4 {[%clk 0:00:20.3]} 41. Rxh4 {[%clk
0:00:02.4]} 41... gxh4 {[%clk 0:00:20.2]} 42. Kd3 {[%clk 0:00:03.1]} 42... h3
{[%clk 0:00:20.5]} 43. Ke2 {[%clk 0:00:03.9]} 43... h2 {[%clk 0:00:20.8]} 44.
Kf2 {[%clk 0:00:04.8]} 44... h1=Q {[%clk 0:00:20.2]} 0-1

[Event "*** SCC Grand Prix: Titled Tuesday Blitz"]
[Site "Chess.com"]
[Date "2020.09.29"]
[Round "7"]
[White "maxsergej"]
[Black "novocane"]
[Result "1/2-1/2"]
[WhiteElo "2102"]
[BlackElo "2283"]
[TimeControl "180+1"]
[EndTime "11:16:11 PDT"]
[Termination "Game drawn by repetition"]

1. e4 {[%clk 0:03:00.9]} 1... c5 {[%clk 0:02:59.7]} 2. Nf3 {[%clk 0:03:00.2]}
2... Nc6 {[%clk 0:03:00.4]} 3. d4 {[%clk 0:03:00.3]} 3... cxd4 {[%clk
0:03:01.1]} 4. Nxd4 {[%clk 0:03:00.4]} 4... e5 {[%clk 0:03:01.7]} 5. Nb5 {[%clk
0:03:00.2]} 5... d6 {[%clk 0:03:01.6]} 6. Be3 {[%clk 0:02:59.8]} 6... Nf6 {[%clk
0:02:58.3]} 7. N1c3 {[%clk 0:02:56.2]} 7... a6 {[%clk 0:02:55.7]} 8. Na3 {[%clk
0:02:56.2]} 8... Be7 {[%clk 0:02:53.9]} 9. Nd5 {[%clk 0:02:56]} 9... Nxd5 {[%clk
0:02:52.4]} 10. exd5 {[%clk 0:02:55.9]} 10... Nd4 {[%clk 0:02:49.5]} 11. c3
{[%clk 0:02:36.6]} 11... Nf5 {[%clk 0:02:47.7]} 12. Bd2 {[%clk 0:02:20.6]} 12...
O-O {[%clk 0:02:42.5]} 13. Be2 {[%clk 0:02:14.1]} 13... Bg5 {[%clk 0:02:38.8]}
14. O-O {[%clk 0:02:01.5]} 14... Bd7 {[%clk 0:02:10.4]} 15. Nc4 {[%clk 0:01:58]}
15... Bb5 {[%clk 0:01:52.5]} 16. a4 {[%clk 0:01:32]} 16... Bxc4 {[%clk
0:01:47.7]} 17. Bxc4 {[%clk 0:01:31.4]} 17... Bxd2 {[%clk 0:01:39.6]} 18. Qxd2
{[%clk 0:01:30.1]} 18... Rc8 {[%clk 0:01:38.2]} 19. Bd3 {[%clk 0:01:26.9]} 19...
Ne7 {[%clk 0:01:35.6]} 20. c4 {[%clk 0:01:25.6]} 20... a5 {[%clk 0:01:32.7]} 21.
b4 {[%clk 0:01:18.6]} 21... b6 {[%clk 0:01:23.9]} 22. Rac1 {[%clk 0:01:14.1]}
22... f5 {[%clk 0:01:20.9]} 23. f4 {[%clk 0:01:08.2]} 23... e4 {[%clk
0:00:53.9]} 24. Be2 {[%clk 0:01:07.9]} 24... Ng6 {[%clk 0:00:47.6]} 25. g3
{[%clk 0:01:06]} 25... Qc7 {[%clk 0:00:24.8]} 26. Qd4 {[%clk 0:01:01]} 26...
axb4 {[%clk 0:00:22.9]} 27. Rb1 {[%clk 0:00:59.7]} 27... Qc5 {[%clk 0:00:22.5]}
28. Rfd1 {[%clk 0:00:58.5]} 28... Ra8 {[%clk 0:00:12.5]} 29. Ra1 {[%clk
0:00:54.1]} 29... Rfc8 {[%clk 0:00:11.7]} 30. Kg2 {[%clk 0:00:52.9]} 30... Ne7
{[%clk 0:00:11.8]} 31. h4 {[%clk 0:00:41.4]} 31... Qxd4 {[%clk 0:00:11.7]} 32.
Rxd4 {[%clk 0:00:40.5]} 32... Rc7 {[%clk 0:00:11.7]} 33. Bd1 {[%clk 0:00:39]}
33... g6 {[%clk 0:00:09.2]} 34. Bb3 {[%clk 0:00:38.7]} 34... Kg7 {[%clk
0:00:09.2]} 35. Rh1 {[%clk 0:00:38.1]} 35... h5 {[%clk 0:00:08.5]} 36. Rb1
{[%clk 0:00:36.9]} 36... Ng8 {[%clk 0:00:08]} 37. Bd1 {[%clk 0:00:36.3]} 37...
Nf6 {[%clk 0:00:06.9]} 38. Rxb4 {[%clk 0:00:36.2]} 38... Ra6 {[%clk 0:00:06.8]}
39. Rd2 {[%clk 0:00:30.3]} 39... Nd7 {[%clk 0:00:06.8]} 40. Rdb2 {[%clk
0:00:29.1]} 40... Kf6 {[%clk 0:00:06.7]} 41. Kh2 {[%clk 0:00:24.8]} 41... Rca7
{[%clk 0:00:06.4]} 42. Kg2 {[%clk 0:00:22.9]} 42... Rc7 {[%clk 0:00:06.7]} 43.
Kh2 {[%clk 0:00:22.5]} 43... Rca7 {[%clk 0:00:07.2]} 44. Kg2 {[%clk 0:00:22.7]}
44... Rc7 {[%clk 0:00:07.5]} 1/2-1/2

[Event "*** SCC Grand Prix: Titled Tuesday Blitz"]
[Site "Chess.com"]
[Date "2020.09.29"]
[Round "7"]
[White "Susal_De_Silva"]
[Black "zmeeed67"]
[Result "1-0"]
[WhiteElo "2531"]
[BlackElo "2375"]
[TimeControl "180+1"]
[EndTime "11:16:12 PDT"]
[Termination "Susal_De_Silva won on time"]

1. e4 {[%clk 0:03:00.9]} 1... Nc6 {[%clk 0:02:59.5]} 2. Nc3 {[%clk 0:02:58.9]}
2... d6 {[%clk 0:02:59.5]} 3. d4 {[%clk 0:02:58]} 3... Nf6 {[%clk 0:02:59.5]} 4.
Nf3 {[%clk 0:02:56.9]} 4... Bg4 {[%clk 0:02:59.2]} 5. Bb5 {[%clk 0:02:56.3]}
5... a6 {[%clk 0:02:58.9]} 6. Bxc6+ {[%clk 0:02:50.5]} 6... bxc6 {[%clk
0:02:58.8]} 7. h3 {[%clk 0:02:51]} 7... Bc8 {[%clk 0:02:58.9]} 8. Be3 {[%clk
0:02:48.9]} 8... e6 {[%clk 0:02:59.2]} 9. O-O {[%clk 0:02:48.1]} 9... Be7 {[%clk
0:02:59.7]} 10. Qe2 {[%clk 0:02:46.8]} 10... a5 {[%clk 0:02:57.7]} 11. Nd2
{[%clk 0:02:46.9]} 11... Ba6 {[%clk 0:02:56.3]} 12. Qf3 {[%clk 0:02:35]} 12...
Bxf1 {[%clk 0:02:56]} 13. Rxf1 {[%clk 0:02:35.6]} 13... O-O {[%clk 0:02:55.2]}
14. g4 {[%clk 0:02:33.3]} 14... Nd7 {[%clk 0:02:54.9]} 15. Qg3 {[%clk
0:02:31.5]} 15... e5 {[%clk 0:02:46.5]} 16. d5 {[%clk 0:02:25.4]} 16... c5
{[%clk 0:02:42.5]} 17. f4 {[%clk 0:02:24.9]} 17... exf4 {[%clk 0:02:40.5]} 18.
Bxf4 {[%clk 0:02:25.8]} 18... Bg5 {[%clk 0:02:33]} 19. Kg2 {[%clk 0:02:05.9]}
19... Rb8 {[%clk 0:02:25.4]} 20. Nc4 {[%clk 0:02:03.8]} 20... Ra8 {[%clk
0:01:35.8]} 21. Bxg5 {[%clk 0:01:53.8]} 21... Qxg5 {[%clk 0:01:34.6]} 22. h4
{[%clk 0:01:54.1]} 22... Qe7 {[%clk 0:01:31.3]} 23. g5 {[%clk 0:01:42.2]} 23...
Rfe8 {[%clk 0:01:30.4]} 24. h5 {[%clk 0:01:28.9]} 24... Ne5 {[%clk 0:01:25.2]}
25. Ne3 {[%clk 0:01:27.5]} 25... g6 {[%clk 0:01:19.5]} 26. Rh1 {[%clk
0:01:15.1]} 26... Rab8 {[%clk 0:01:07.8]} 27. b3 {[%clk 0:01:13.9]} 27... Rb4
{[%clk 0:01:06.6]} 28. a3 {[%clk 0:01:11.6]} 28... Rd4 {[%clk 0:01:06.2]} 29.
Qh4 {[%clk 0:01:08.1]} 29... Rd2+ {[%clk 0:01:01]} 30. Kg3 {[%clk 0:01:00.7]}
30... c4 {[%clk 0:00:46.6]} 31. b4 {[%clk 0:00:58.5]} 31... axb4 {[%clk
0:00:46]} 32. axb4 {[%clk 0:00:59.4]} 32... Nd7 {[%clk 0:00:35.8]} 33. Kf3
{[%clk 0:00:40]} 33... Nf8 {[%clk 0:00:24.6]} 34. Ng4 {[%clk 0:00:37.2]} 34...
Nd7 {[%clk 0:00:17]} 35. Nh6+ {[%clk 0:00:26.5]} 35... Kg7 {[%clk 0:00:14.4]}
36. Qf4 {[%clk 0:00:23]} 36... Rxc2 {[%clk 0:00:09.8]} 37. Ne2 {[%clk
0:00:22.6]} 37... Ne5+ {[%clk 0:00:09.6]} 38. Ke3 {[%clk 0:00:21.4]} 38... f6
{[%clk 0:00:06.9]} 39. Nd4 {[%clk 0:00:20]} 39... Rc3+ {[%clk 0:00:06.4]} 40.
Ke2 {[%clk 0:00:19.2]} 40... fxg5 {[%clk 0:00:03]} 41. Qh2 {[%clk 0:00:17]} 1-0

[Event "*** SCC Grand Prix: Titled Tuesday Blitz"]
[Site "Chess.com"]
[Date "2020.09.29"]
[Round "7"]
[White "BikingBrian"]
[Black "TokChess"]
[Result "0-1"]
[WhiteElo "2202"]
[BlackElo "2399"]
[TimeControl "180+1"]
[EndTime "11:16:16 PDT"]
[Termination "TokChess won on time"]

1. d4 {[%clk 0:03:00.9]} 1... d5 {[%clk 0:02:57.2]} 2. Bf4 {[%clk 0:02:59.6]}
2... Nf6 {[%clk 0:02:56.5]} 3. e3 {[%clk 0:02:59.7]} 3... Bg4 {[%clk 0:02:51.2]}
4. Qd3 {[%clk 0:02:54.7]} 4... c6 {[%clk 0:02:44.4]} 5. c4 {[%clk 0:02:52.8]}
5... e6 {[%clk 0:02:41.4]} 6. Qb3 {[%clk 0:02:52.2]} 6... Qc8 {[%clk 0:02:07.7]}
7. Nc3 {[%clk 0:02:46.8]} 7... Nbd7 {[%clk 0:02:03.8]} 8. cxd5 {[%clk
0:02:46.9]} 8... exd5 {[%clk 0:02:02.8]} 9. Rc1 {[%clk 0:02:46.9]} 9... Be7
{[%clk 0:01:55.9]} 10. Bd3 {[%clk 0:02:18.7]} 10... O-O {[%clk 0:01:55.4]} 11.
Nge2 {[%clk 0:02:15.9]} 11... Re8 {[%clk 0:01:54.3]} 12. O-O {[%clk 0:02:15.4]}
12... Nb6 {[%clk 0:01:48.2]} 13. f3 {[%clk 0:02:08.5]} 13... Be6 {[%clk
0:01:44.8]} 14. Qc2 {[%clk 0:02:01.9]} 14... Qd7 {[%clk 0:01:43.7]} 15. Ng3
{[%clk 0:02:00]} 15... Nc8 {[%clk 0:01:43.2]} 16. Rcd1 {[%clk 0:01:58.7]} 16...
g6 {[%clk 0:01:38.4]} 17. Be5 {[%clk 0:01:51.9]} 17... Qd8 {[%clk 0:01:35.9]}
18. e4 {[%clk 0:01:43.3]} 18... Nd7 {[%clk 0:01:34.2]} 19. Bf4 {[%clk
0:01:40.3]} 19... Bf6 {[%clk 0:01:31.7]} 20. e5 {[%clk 0:01:39.9]} 20... Bg7
{[%clk 0:01:32.2]} 21. Be3 {[%clk 0:01:38.9]} 21... f5 {[%clk 0:01:28.8]} 22. f4
{[%clk 0:01:31.8]} 22... Nf8 {[%clk 0:01:29]} 23. Nge2 {[%clk 0:01:10.4]} 23...
Qe7 {[%clk 0:01:28]} 24. Kh1 {[%clk 0:01:07.2]} 24... Bd7 {[%clk 0:01:27]} 25.
Rg1 {[%clk 0:00:58.9]} 25... h5 {[%clk 0:01:24.4]} 26. h3 {[%clk 0:00:52.4]}
26... Ne6 {[%clk 0:01:19.3]} 27. Rdf1 {[%clk 0:00:51.2]} 27... Nb6 {[%clk
0:01:10.4]} 28. b3 {[%clk 0:00:49.6]} 28... Rac8 {[%clk 0:01:10.2]} 29. Qd2
{[%clk 0:00:49.9]} 29... c5 {[%clk 0:01:07.5]} 30. Nb5 {[%clk 0:00:46.4]} 30...
cxd4 {[%clk 0:01:05.4]} 31. Nbxd4 {[%clk 0:00:46]} 31... Nc5 {[%clk 0:01:00.8]}
32. Rc1 {[%clk 0:00:43.2]} 32... Ne4 {[%clk 0:01:00.7]} 33. Bxe4 {[%clk
0:00:43.6]} 33... dxe4 {[%clk 0:00:52.7]} 34. Rxc8 {[%clk 0:00:40.1]} 34... Rxc8
{[%clk 0:00:52.2]} 35. Rc1 {[%clk 0:00:40.7]} 35... Rxc1+ {[%clk 0:00:49.2]} 36.
Qxc1 {[%clk 0:00:41.6]} 36... Nd5 {[%clk 0:00:47.6]} 37. Nc3 {[%clk 0:00:33.7]}
37... Nxe3 {[%clk 0:00:44]} 38. Qxe3 {[%clk 0:00:33.8]} 38... Bf8 {[%clk
0:00:43.1]} 39. Nde2 {[%clk 0:00:23.8]} 39... Qc5 {[%clk 0:00:38.6]} 40. Qg3
{[%clk 0:00:20.5]} 40... Kf7 {[%clk 0:00:33.4]} 41. Qg5 {[%clk 0:00:20.2]} 41...
Qe7 {[%clk 0:00:30.3]} 42. Qh6 {[%clk 0:00:20.2]} 42... Bg7 {[%clk 0:00:30.2]}
43. Qh7 {[%clk 0:00:16.3]} 43... Be8 {[%clk 0:00:26.3]} 44. Nd5 {[%clk
0:00:16.1]} 44... Qe6 {[%clk 0:00:18.5]} 45. Nf6 {[%clk 0:00:16.1]} 45... Kf8
{[%clk 0:00:18.5]} 46. Nd4 {[%clk 0:00:14.1]} 46... Qf7 {[%clk 0:00:15]} 47. Nb5
{[%clk 0:00:03.2]} 47... Bxf6 {[%clk 0:00:13.4]} 0-1

[Event "*** SCC Grand Prix: Titled Tuesday Blitz"]
[Site "Chess.com"]
[Date "2020.09.29"]
[Round "7"]
[White "kai_nov"]
[Black "Ural_bogatyr"]
[Result "1-0"]
[WhiteElo "2266"]
[BlackElo "2358"]
[TimeControl "180+1"]
[EndTime "11:16:19 PDT"]
[Termination "kai_nov won on time"]

1. d4 {[%clk 0:03:00.9]} 1... Nf6 {[%clk 0:02:54.3]} 2. c4 {[%clk 0:03:00.4]}
2... e5 {[%clk 0:02:54.5]} 3. dxe5 {[%clk 0:03:00]} 3... Ng4 {[%clk 0:02:52.9]}
4. e4 {[%clk 0:02:58.4]} 4... Nxe5 {[%clk 0:02:52.4]} 5. f4 {[%clk 0:02:57.9]}
5... Nec6 {[%clk 0:02:52.9]} 6. a3 {[%clk 0:02:55.5]} 6... a5 {[%clk 0:02:51.4]}
7. Be3 {[%clk 0:02:53.1]} 7... Na6 {[%clk 0:02:51.1]} 8. Nc3 {[%clk 0:02:49.1]}
8... Bc5 {[%clk 0:02:50.4]} 9. Qd2 {[%clk 0:02:39.8]} 9... O-O {[%clk
0:02:38.5]} 10. Nf3 {[%clk 0:02:39.7]} 10... d6 {[%clk 0:02:37.6]} 11. Bd3
{[%clk 0:02:35.9]} 11... Re8 {[%clk 0:02:35.5]} 12. O-O {[%clk 0:02:34.1]} 12...
Bxe3+ {[%clk 0:02:34.6]} 13. Qxe3 {[%clk 0:02:33.7]} 13... Nc5 {[%clk
0:02:35.5]} 14. Bc2 {[%clk 0:02:25.7]} 14... Be6 {[%clk 0:02:26.2]} 15. Nd2
{[%clk 0:02:22.4]} 15... f5 {[%clk 0:02:13.9]} 16. Rae1 {[%clk 0:01:22.9]} 16...
Qf6 {[%clk 0:02:06.4]} 17. e5 {[%clk 0:01:17.9]} 17... Qf8 {[%clk 0:02:02.9]}
18. Nd5 {[%clk 0:01:07.8]} 18... Rac8 {[%clk 0:01:51.7]} 19. Qc3 {[%clk
0:00:59.8]} 19... dxe5 {[%clk 0:01:44.9]} 20. fxe5 {[%clk 0:00:58.4]} 20... Nd7
{[%clk 0:01:32.5]} 21. Nf3 {[%clk 0:00:40]} 21... Qc5+ {[%clk 0:01:23.1]} 22.
Kh1 {[%clk 0:00:35.7]} 22... Nb6 {[%clk 0:01:07.2]} 23. Nf4 {[%clk 0:00:19.9]}
23... Qxc4 {[%clk 0:00:48.8]} 24. Nxe6 {[%clk 0:00:19.6]} 24... Qxe6 {[%clk
0:00:41.4]} 25. Ng5 {[%clk 0:00:19.4]} 25... Qg6 {[%clk 0:00:26.9]} 26. Rxf5
{[%clk 0:00:17.6]} 26... Nd5 {[%clk 0:00:06.9]} 27. Qb3 {[%clk 0:00:14.8]} 27...
Ne7 {[%clk 0:00:04.7]} 28. Rf8+ {[%clk 0:00:11.8]} 28... Rxf8 {[%clk 0:00:05.3]}
29. Bxg6 {[%clk 0:00:11.5]} 29... hxg6 {[%clk 0:00:06.2]} 30. Qh3 {[%clk
0:00:08.8]} 30... Rf5 {[%clk 0:00:04.4]} 31. Qh7+ {[%clk 0:00:06.9]} 31... Kf8
{[%clk 0:00:04.3]} 32. Qh8+ {[%clk 0:00:03.3]} 32... Ng8 {[%clk 0:00:04.5]} 33.
Ne6+ {[%clk 0:00:02.9]} 33... Kf7 {[%clk 0:00:04.1]} 34. Qxg7+ {[%clk 0:00:02]}
34... Kxe6 {[%clk 0:00:04]} 35. Qxg6+ {[%clk 0:00:02.3]} 35... Ngf6 {[%clk
0:00:02.5]} 36. exf6+ {[%clk 0:00:01.9]} 36... Kd6 {[%clk 0:00:02.9]} 37. Qxf5
{[%clk 0:00:02.1]} 37... Rf8 {[%clk 0:00:03.6]} 38. f7 {[%clk 0:00:02.3]} 38...
c6 {[%clk 0:00:03.2]} 39. Qe6+ {[%clk 0:00:02.7]} 39... Kc5 {[%clk 0:00:03.4]}
40. Qe8 {[%clk 0:00:03]} 1-0

[Event "*** SCC Grand Prix: Titled Tuesday Blitz"]
[Site "Chess.com"]
[Date "2020.09.29"]
[Round "7"]
[White "nitpicker"]
[Black "parnali1611"]
[Result "0-1"]
[WhiteElo "2227"]
[BlackElo "2111"]
[TimeControl "180+1"]
[EndTime "11:16:20 PDT"]
[Termination "parnali1611 won on time"]

1. d4 {[%clk 0:03:00.9]} 1... d5 {[%clk 0:02:58.3]} 2. c4 {[%clk 0:03:00.6]}
2... e6 {[%clk 0:02:56.4]} 3. Nf3 {[%clk 0:02:57.5]} 3... Nf6 {[%clk 0:02:54]}
4. g3 {[%clk 0:02:55.8]} 4... Bb4+ {[%clk 0:02:52.9]} 5. Bd2 {[%clk 0:02:55]}
5... Be7 {[%clk 0:02:49.9]} 6. Bg2 {[%clk 0:02:54.3]} 6... O-O {[%clk
0:02:47.7]} 7. Qc2 {[%clk 0:02:52.4]} 7... a6 {[%clk 0:02:36.4]} 8. Bf4 {[%clk
0:02:47.7]} 8... Bb4+ {[%clk 0:02:30.1]} 9. Nbd2 {[%clk 0:02:47.2]} 9... c5
{[%clk 0:02:24.9]} 10. dxc5 {[%clk 0:02:45.3]} 10... Bxc5 {[%clk 0:02:10.7]} 11.
cxd5 {[%clk 0:02:36.6]} 11... Qb6 {[%clk 0:01:57.7]} 12. O-O {[%clk 0:02:21.7]}
12... exd5 {[%clk 0:01:54.4]} 13. Nb3 {[%clk 0:02:17.8]} 13... Bb4 {[%clk
0:01:45.5]} 14. Rac1 {[%clk 0:02:04]} 14... Nc6 {[%clk 0:01:39.7]} 15. Be3
{[%clk 0:01:56.4]} 15... Qd8 {[%clk 0:01:30.8]} 16. Rfd1 {[%clk 0:01:54.2]}
16... Qe7 {[%clk 0:01:30.3]} 17. Bc5 {[%clk 0:01:35.7]} 17... Bxc5 {[%clk
0:01:26.5]} 18. Nxc5 {[%clk 0:01:35.8]} 18... h6 {[%clk 0:01:14.6]} 19. h3
{[%clk 0:01:25.6]} 19... Be6 {[%clk 0:01:01.4]} 20. b3 {[%clk 0:01:07.3]} 20...
Rac8 {[%clk 0:00:59.5]} 21. Qb2 {[%clk 0:01:03.3]} 21... a5 {[%clk 0:00:46.8]}
22. e3 {[%clk 0:00:58.9]} 22... Nb4 {[%clk 0:00:44.2]} 23. Nd3 {[%clk 0:00:22]}
23... Nxd3 {[%clk 0:00:33.3]} 24. Rxd3 {[%clk 0:00:22]} 24... Rxc1+ {[%clk
0:00:19]} 25. Qxc1 {[%clk 0:00:22.9]} 25... Bf5 {[%clk 0:00:17.2]} 26. Rc3
{[%clk 0:00:17.7]} 26... Be4 {[%clk 0:00:15.4]} 27. Rc7 {[%clk 0:00:16.7]} 27...
Qb4 {[%clk 0:00:14.7]} 28. Qd2 {[%clk 0:00:14.4]} 28... Bxf3 {[%clk 0:00:13.1]}
29. Qxb4 {[%clk 0:00:13.7]} 29... axb4 {[%clk 0:00:13.1]} 30. Bxf3 {[%clk
0:00:14.2]} 30... Ra8 {[%clk 0:00:12.5]} 31. Rxb7 {[%clk 0:00:12.7]} 31... Rxa2
{[%clk 0:00:12.1]} 32. Rxb4 {[%clk 0:00:12.4]} 32... Rb2 {[%clk 0:00:11.3]} 33.
Rb5 {[%clk 0:00:11]} 33... Ne4 {[%clk 0:00:10.3]} 34. Bxe4 {[%clk 0:00:10]}
34... dxe4 {[%clk 0:00:09.4]} 35. g4 {[%clk 0:00:10.4]} 35... g5 {[%clk
0:00:08.7]} 36. Kg2 {[%clk 0:00:08.7]} 36... Kg7 {[%clk 0:00:08.4]} 37. Kg3
{[%clk 0:00:09]} 37... f6 {[%clk 0:00:08]} 38. f3 {[%clk 0:00:09.3]} 38... Re2
{[%clk 0:00:06.4]} 39. fxe4 {[%clk 0:00:08.6]} 39... Rxe3+ {[%clk 0:00:06.3]}
40. Kf2 {[%clk 0:00:06.5]} 40... Rxe4 {[%clk 0:00:06.3]} 41. Kf3 {[%clk
0:00:04.3]} 41... Rf4+ {[%clk 0:00:06.4]} 42. Ke3 {[%clk 0:00:04.6]} 42... Kg6
{[%clk 0:00:06.3]} 43. Rb7 {[%clk 0:00:03.6]} 43... h5 {[%clk 0:00:04.8]} 44.
gxh5+ {[%clk 0:00:01.1]} 44... Kxh5 {[%clk 0:00:05.7]} 0-1

[Event "*** SCC Grand Prix: Titled Tuesday Blitz"]
[Site "Chess.com"]
[Date "2020.09.29"]
[Round "7"]
[White "ENajer77"]
[Black "Guenplen"]
[Result "0-1"]
[WhiteElo "2707"]
[BlackElo "2872"]
[TimeControl "180+1"]
[EndTime "11:16:22 PDT"]
[Termination "Guenplen won on time"]

1. e4 {[%clk 0:03:00.9]} 1... c5 {[%clk 0:03:00.2]} 2. Nf3 {[%clk 0:03:00.3]}
2... e6 {[%clk 0:03:00.6]} 3. d4 {[%clk 0:03:00.3]} 3... cxd4 {[%clk 0:03:01.5]}
4. Nxd4 {[%clk 0:03:00.9]} 4... Nf6 {[%clk 0:03:02.1]} 5. Nc3 {[%clk 0:03:00]}
5... Nc6 {[%clk 0:03:02.5]} 6. Ndb5 {[%clk 0:02:58]} 6... Bc5 {[%clk 0:03:02.1]}
7. Bf4 {[%clk 0:02:53.1]} 7... O-O {[%clk 0:03:02]} 8. Bc7 {[%clk 0:02:44.6]}
8... Qe7 {[%clk 0:03:02.1]} 9. Bd6 {[%clk 0:02:44.8]} 9... Bxd6 {[%clk
0:03:02.5]} 10. Qxd6 {[%clk 0:02:45]} 10... Qd8 {[%clk 0:03:02.9]} 11. O-O-O
{[%clk 0:02:28.2]} 11... a6 {[%clk 0:03:02.6]} 12. Nd4 {[%clk 0:02:25.5]} 12...
Na5 {[%clk 0:03:02.9]} 13. Nb3 {[%clk 0:02:21.4]} 13... b5 {[%clk 0:03:00.6]}
14. f3 {[%clk 0:02:07.8]} 14... Nxb3+ {[%clk 0:02:55.7]} 15. axb3 {[%clk
0:02:00.7]} 15... Bb7 {[%clk 0:02:56.6]} 16. Kb1 {[%clk 0:01:59.2]} 16... Bc6
{[%clk 0:02:54.1]} 17. h4 {[%clk 0:01:45.1]} 17... Qb8 {[%clk 0:02:49.1]} 18. g4
{[%clk 0:01:33.5]} 18... a5 {[%clk 0:02:39.4]} 19. Rh2 {[%clk 0:01:15.6]} 19...
a4 {[%clk 0:02:31.6]} 20. Qxb8 {[%clk 0:01:10.9]} 20... Rfxb8 {[%clk 0:02:32.5]}
21. b4 {[%clk 0:01:09.6]} 21... Kf8 {[%clk 0:02:19.5]} 22. Rhd2 {[%clk 0:01:00]}
22... Ke7 {[%clk 0:02:19.3]} 23. Ka2 {[%clk 0:00:47.2]} 23... h6 {[%clk
0:02:17.8]} 24. Ka3 {[%clk 0:00:46.5]} 24... g5 {[%clk 0:02:15.9]} 25. hxg5
{[%clk 0:00:33.6]} 25... hxg5 {[%clk 0:02:16.8]} 26. e5 {[%clk 0:00:34.2]} 26...
Nd5 {[%clk 0:01:38.9]} 27. Nxd5+ {[%clk 0:00:33.9]} 27... Bxd5 {[%clk
0:01:39.8]} 28. Rxd5 {[%clk 0:00:34]} 28... exd5 {[%clk 0:01:40.7]} 29. Rxd5
{[%clk 0:00:34.5]} 29... Rh8 {[%clk 0:01:39.9]} 30. Bxb5 {[%clk 0:00:30.4]}
30... Rh1 {[%clk 0:01:39.7]} 31. Ka2 {[%clk 0:00:16.5]} 31... Ra7 {[%clk
0:01:17.8]} 32. Bd3 {[%clk 0:00:16.6]} 32... Rb7 {[%clk 0:01:02.8]} 33. b5
{[%clk 0:00:16.2]} 33... Rb6 {[%clk 0:00:51.8]} 34. Bf5 {[%clk 0:00:11.3]} 34...
d6 {[%clk 0:00:49]} 35. exd6+ {[%clk 0:00:05.9]} 35... Rxd6 {[%clk 0:00:49.9]}
36. Re5+ {[%clk 0:00:04.8]} 36... Kd8 {[%clk 0:00:40.8]} 37. Rc5 {[%clk
0:00:03.1]} 37... Rdd1 {[%clk 0:00:24.5]} 38. Ka3 {[%clk 0:00:02.8]} 38... Ra1+
{[%clk 0:00:20.4]} 39. Kb4 {[%clk 0:00:03.1]} 39... Rhb1 {[%clk 0:00:21.3]} 40.
Ka5 {[%clk 0:00:03.1]} 40... Rxb2 {[%clk 0:00:20.3]} 41. b6 {[%clk 0:00:03.8]}
41... Rab1 {[%clk 0:00:19.8]} 42. Rc8+ {[%clk 0:00:03.3]} 42... Ke7 {[%clk
0:00:19.8]} 43. Rc7+ {[%clk 0:00:03.2]} 43... Kd6 {[%clk 0:00:20.2]} 44. c4
{[%clk 0:00:01.1]} 44... Rxb6 {[%clk 0:00:18.2]} 45. Rxf7 {[%clk 0:00:01.3]}
45... a3 {[%clk 0:00:13.9]} 0-1